[Event "38th Barczay Memorial 2019"]
[Site "Zalakaros"]
[Date "2019.05.26"]
[Round "4.7"]
[White "Horvath, Jozsef"]
[Black "Ianov, Viktor"]
[Result "1-0"]
[ECO "E62"]
[WhiteElo "2451"]
[BlackElo "2298"]
[Annotator "ChessBase"]
[PlyCount "71"]
[EventDate "2019.05.23"]
[EventType "swiss"]
[EventCountry "HUN"]
[SourceTitle "playchess.com"]
[Source "ChessBase"]
[SourceQuality "1"]
[TimeControl "40/5400+30:1800+30"]

1. d4 {[%emt 0:06:50]} d6 {[%emt 0:00:09]} 2. c4 {[%emt 0:00:14]} Nf6 {[%emt 0:00:10]} 3. Nc3 {[%emt 0:01:00]} g6 {[%emt 0:00:10]} 4. g3 {[%emt 0:02:09]} Bg7 {[%emt 0:00:12]} 5. Bg2 {[%emt 0:00:07]} O-O {[%emt 0:00:11]} 6. Nf3 {[%emt 0:00:05]} c6 {[%emt 0:01:34]} 7. O-O {[%emt 0:00:53]} Bf5 {[%emt 0:00:10]} 8. Ne1 {[%emt 0:01:37]} Qc8 {[%emt 0:00:15]} 9. e4 {[%emt 0:05:21]} Bh3 {[%emt 0:01:09]} 10. f3 {[%emt 0:01:50]} Bxg2 {[%emt 0:01:03]} 11. Kxg2 {[%emt 0:00:35]} Nbd7 {[%emt 0:00:30]} 12. Be3 {[%emt 0:09:37]} Rd8 {[%emt 0:00:55]} 13. Rc1 {[%emt 0:02:08]} b6 {[%emt 0:03:27]} 14. Nd3 {[%emt 0:16:01]} Qb7 {[%emt 0:04:42]} 15. Rf2 {[%emt 0:06:05]} Rac8 {[%emt 0:00:27]} 16. Rfc2 {[%emt 0:03:25]} a6 {[%emt 0:01:22]} 17. a4 {[%emt 0:01:51]} a5 {[%emt 0:02:35]} 18. Qe2 {[%emt 0:03:05]} e5 {[%emt 0:03:04]} 19. d5 {[%emt 0:05:01]} c5 {[%emt 0:01:31]} 20. Rf1 {[%emt 0:01:59]} Rf8 {[%emt 0:01:33]} 21. f4 {[%emt 0:06:23]} exf4 {[%emt 0:01:48]} 22. Bxf4 {[%emt 0:00:28]} Ne8 {[%emt 0:00:20]} 23. Nb5 {[%emt 0:02:27]} Qb8 {[%emt 0:00:26]} 24. Qg4 {[%emt 0:03:20]} Rd8 {[%emt 0:00:43]} 25. Bg5 {[%emt 0:02:28]} h5 {[%emt 0:04:24]} 26. Qh4 {[%emt 0:05:05]} f6 {[%emt 0:00:30]} 27. Bc1 {[%emt 0:03:39]} Ne5 {[%emt 0:01:38]} 28. Nxe5 dxe5 {[%emt 0:00:13]} 29. g4 {[%emt 0:02:11]} Qc8 {[%emt 0:04:20]} 30. gxh5 {[%emt 0:00:36]} g5 {[%emt 0:00:28]} 31. Qh3 {[%emt 0:03:51]} g4 {[%emt 0:02:56]} 32. Qh4 {[%emt 0:00:56]} f5 {[%emt 0:00:09]} 33. Bg5 {[%emt 0:01:27]} Nf6 {[%emt 0:00:38]} 34. h6 {[%emt 0:00:59]} f4 {[%emt 0:01:50]} 35. hxg7 {[%emt 0:00:18]} Kxg7 {[%emt 0:00:10]} 36. Qh6+ {[%emt 0:00:42]} 1-0

[Event "38th Barczay Memorial 2019"]
[Site "Zalakaros"]
[Date "2019.05.26"]
[Round "4.8"]
[White "Doric, Nenad"]
[Black "Meszaros, Tamas"]
[Result "1/2-1/2"]
[ECO "E42"]
[WhiteElo "2262"]
[BlackElo "2385"]
[Annotator "NA"]
[PlyCount "45"]
[EventDate "2019.05.23"]
[EventType "swiss"]
[EventCountry "HUN"]
[SourceTitle "playchess.com"]
[Source "ChessBase"]
[SourceQuality "1"]
[TimeControl "40/5400+30:1800+30"]

1. d4 {[%emt 0:00:19]} Nf6 {[%emt 0:00:34]} 2. c4 {[%emt 0:00:35]} e6 {[%emt 0:00:05]} 3. Nc3 {[%emt 0:00:34]} Bb4 {[%emt 0:00:18]} 4. e3 {[%emt 0:00:30]} c5 {[%emt 0:02:04]} 5. Nge2 {[%emt 0:00:59]} cxd4 {[%emt 0:00:14]} 6. exd4 {[%emt 0:00:12]} O-O {[%emt 0:00:07]} 7. a3 {[%emt 0:00:28]} Be7 {[%emt 0:00:05]} 8. Nf4 {[%emt 0:01:16]} d6 {[%emt 0:00:47]} 9. Be2 {[%emt 0:01:31]} e5 {[%emt 0:00:18]} 10. dxe5 {[%emt 0:02:10]} dxe5 {[%emt 0:00:08]} 11. Nfd5 {[%emt 0:01:25]} Nxd5 {[%emt 0:00:11]} 12. cxd5 {[%emt 0:01:41]} Na6 {[%emt 0:00:31]} 13. Be3 {[%emt 0:13:45]} Bf5 {[%emt 0:15:17]} 14. O-O {[%emt 0:02:06]} Nc7 {[%emt 0:24:57]} 15. Qb3 {[%emt 0:08:02]} b6 {[%emt 0:00:22]} 16. f3 {[%emt 0:05:44]} Bg5 {[%emt 0:13:27]} 17. Bf2 {[%emt 0:01:17]} Qd6 {[%emt 0:08:14]} 18. Ne4 {[%emt 0:03:08]} Bxe4 19. fxe4 {[%emt 0:00:12]} Qg6 {[%emt 0:09:06]} 20. Qc3 {[%emt 0:07:54]} Ne8 {[%emt 0:11:04]} 21. Qxe5 {[%emt 0:05:58]} Nd6 {[%emt 0:00:09]} 22. Bf3 {[%emt 0:04:29]} Rae8 {[%emt 0:00:38]} 23. Qg3 {[%emt 0:01:15]} 1/2-1/2

[Event "38th Barczay Memorial 2019"]
[Site "Zalakaros"]
[Date "2019.05.26"]
[Round "4.9"]
[White "Videki, Sandor"]
[Black "Horak, Jiri"]
[Result "1/2-1/2"]
[ECO "D31"]
[WhiteElo "2383"]
[BlackElo "2226"]
[Annotator "NA"]
[PlyCount "88"]
[EventDate "2019.05.23"]
[EventType "swiss"]
[EventCountry "HUN"]
[SourceTitle "playchess.com"]
[Source "ChessBase"]
[SourceQuality "1"]
[TimeControl "40/5400+30:1800+30"]

1. c4 {[%emt 0:00:07]} e6 {[%emt 0:00:31]} 2. Nc3 {[%emt 0:00:09]} d5 {[%emt 0:00:31]} 3. d4 {[%emt 0:00:08]} Be7 {[%emt 0:00:27]} 4. Nf3 {[%emt 0:01:30]} Nf6 {[%emt 0:00:05]} 5. g3 {[%emt 0:05:19]} O-O {[%emt 0:01:16]} 6. Bg2 {[%emt 0:00:09]} Nbd7 {[%emt 0:08:38]} 7. O-O {[%emt 0:01:55]} c6 {[%emt 0:00:59]} 8. Nd2 {[%emt 0:05:45]} b6 {[%emt 0:07:38]} 9. e4 {[%emt 0:00:43]} dxe4 {[%emt 0:00:24]} 10. Ndxe4 {[%emt 0:00:18]} Bb7 {[%emt 0:00:34]} 11. Qc2 {[%emt 0:12:17]} Nxe4 12. Nxe4 {[%emt 0:01:31]} Nf6 {[%emt 0:01:41]} 13. Rd1 {[%emt 0:00:37]} Nxe4 14. Bxe4 {[%emt 0:00:11]} g6 {[%emt 0:02:20]} 15. Be3 {[%emt 0:20:05]} Bf6 {[%emt 0:01:08]} 16. a4 {[%emt 0:05:35]} Qc7 {[%emt 0:09:26]} 17. a5 {[%emt 0:06:39]} bxa5 {[%emt 0:01:03]} 18. Qc3 {[%emt 0:14:15]} c5 {[%emt 0:02:08]} 19. Bxb7 Qxb7 {[%emt 0:00:44]} 20. Rxa5 {[%emt 0:10:55]} cxd4 21. Bxd4 {[%emt 0:00:34]} Rfd8 {[%emt 0:03:05]} 22. Raa1 {[%emt 0:04:21]} Rxd4 {[%emt 0:08:38]} 23. Rxd4 {[%emt 0:00:07]} Bxd4 {[%emt 0:00:40]} 24. Qxd4 {[%emt 0:00:04]} Rb8 {[%emt 0:00:19]} 25. Rxa7 {[%emt 0:04:53]} Qxb2 {[%emt 0:00:22]} 26. Qf4 {[%emt 0:00:42]} Rb7 {[%emt 0:02:46]} 27. Rxb7 {[%emt 0:01:18]} Qxb7 {[%emt 0:00:08]} 28. h4 {[%emt 0:00:29]} h5 {[%emt 0:00:14]} 29. Qd4 {[%emt 0:00:25]} Qc7 {[%emt 0:02:21]} 30. c5 {[%emt 0:01:12]} Kf8 {[%emt 0:00:09]} 31. Qb4 {[%emt 0:00:27]} Ke8 {[%emt 0:01:29]} 32. Qb5+ {[%emt 0:00:29]} Ke7 {[%emt 0:00:23]} 33. Kh2 {[%emt 0:01:19]} e5 {[%emt 0:00:30]} 34. Kg1 {[%emt 0:00:20]} Ke6 {[%emt 0:00:34]} 35. Qc4+ {[%emt 0:00:36]} Kf6 {[%emt 0:01:08]} 36. Qd5 {[%emt 0:00:36]} Ke7 {[%emt 0:00:12]} 37. Kg2 {[%emt 0:00:34]} f6 {[%emt 0:00:59]} 38. Kg1 {[%emt 0:00:56]} Qd7 {[%emt 0:00:56]} 39. Qg8 {[%emt 0:01:15]} Qe8 {[%emt 0:01:32]} 40. Qd5 {[%emt 0:00:00]} Qd7 {[%emt 0:00:00]} 41. Qe4 {[%emt 0:03:48]} Kf7 {[%emt 0:09:07]} 42. Kg2 {[%emt 0:07:14]} Qc7 {[%emt 0:01:06]} 43. Qd5+ {[%emt 0:01:43]} Ke7 {[%emt 0:00:07]} 44. Kg1 {[%emt 0:01:05]} Qd7 1/2-1/2

[Event "38th Barczay Memorial 2019"]
[Site "Zalakaros"]
[Date "2019.05.26"]
[Round "4.10"]
[White "Tompa, Janos"]
[Black "Bereczki, Janos"]
[Result "1-0"]
[ECO "B11"]
[WhiteElo "2356"]
[BlackElo "2090"]
[Annotator "NA"]
[PlyCount "59"]
[EventDate "2019.05.23"]
[EventType "swiss"]
[EventCountry "HUN"]
[SourceTitle "playchess.com"]
[Source "ChessBase"]
[SourceQuality "1"]
[TimeControl "40/5400+30:1800+30"]

1. e4 {[%emt 0:00:45]} c6 {[%emt 0:07:11]} 2. Nc3 {[%emt 0:00:59]} d5 {[%emt 0:00:38]} 3. Nf3 {[%emt 0:00:17]} Bg4 {[%emt 0:01:11]} 4. h3 {[%emt 0:00:16]} Bxf3 {[%emt 0:00:09]} 5. Qxf3 {[%emt 0:00:06]} e6 {[%emt 0:04:02]} 6. d3 {[%emt 0:03:21]} Qb6 {[%emt 0:06:59]} 7. a3 {[%emt 0:02:52]} Nf6 {[%emt 0:06:17]} 8. g3 {[%emt 0:02:06]} Nbd7 {[%emt 0:01:06]} 9. Bg2 {[%emt 0:00:07]} Be7 {[%emt 0:08:57]} 10. O-O {[%emt 0:01:05]} d4 {[%emt 0:02:46]} 11. Nb1 {[%emt 0:01:58]} O-O {[%emt 0:01:16]} 12. Qe2 {[%emt 0:02:13]} e5 {[%emt 0:03:03]} 13. Nd2 {[%emt 0:00:55]} Ne8 {[%emt 0:00:58]} 14. f4 {[%emt 0:01:19]} f6 {[%emt 0:04:11]} 15. Nf3 {[%emt 0:02:18]} g6 {[%emt 0:01:40]} 16. h4 {[%emt 0:08:02]} Qc7 {[%emt 0:07:18]} 17. h5 {[%emt 0:04:50]} Ng7 {[%emt 0:02:11]} 18. hxg6 hxg6 {[%emt 0:00:06]} 19. Nh4 {[%emt 0:01:58]} g5 {[%emt 0:03:05]} 20. Ng6 {[%emt 0:01:00]} Qd6 {[%emt 0:08:17]} 21. Nxf8 {[%emt 0:02:32]} Nxf8 {[%emt 0:01:18]} 22. fxg5 {[%emt 0:00:14]} fxg5 {[%emt 0:00:07]} 23. Bf3 {[%emt 0:00:40]} Qg6 {[%emt 0:00:53]} 24. Bg4 {[%emt 0:00:12]} Rd8 {[%emt 0:02:43]} 25. Bd2 {[%emt 0:03:16]} Nh7 {[%emt 0:02:23]} 26. Kg2 {[%emt 0:00:36]} b6 {[%emt 0:03:48]} 27. Rf2 {[%emt 0:05:45]} Rf8 {[%emt 0:01:27]} 28. Rxf8+ Nxf8 {[%emt 0:01:00]} 29. Rf1 {[%emt 0:02:36]} Ne8 {[%emt 0:01:40]} 30. Bh5 {[%emt 0:00:34]} 1-0

[Event "38th Barczay Memorial 2019"]
[Site "Zalakaros"]
[Date "2019.05.26"]
[Round "4.11"]
[White "Czebe, Attila"]
[Black "Konyves, Almos"]
[Result "1-0"]
[ECO "C77"]
[WhiteElo "2427"]
[BlackElo "2125"]
[Annotator "NA"]
[PlyCount "85"]
[EventDate "2019.05.23"]
[EventType "swiss"]
[EventCountry "HUN"]
[SourceTitle "playchess.com"]
[Source "ChessBase"]
[SourceQuality "1"]
[TimeControl "40/5400+30:1800+30"]

1. e4 {[%emt 0:01:54]} e5 {[%emt 0:00:13]} 2. Nf3 {[%emt 0:00:08]} Nc6 {[%emt 0:00:12]} 3. Bb5 {[%emt 0:00:04]} a6 {[%emt 0:00:15]} 4. Ba4 {[%emt 0:00:04]} Nf6 {[%emt 0:00:07]} 5. Nc3 {[%emt 0:00:26]} b5 {[%emt 0:01:00]} 6. Bb3 {[%emt 0:00:05]} Be7 {[%emt 0:00:51]} 7. d3 {[%emt 0:01:25]} d6 {[%emt 0:01:31]} 8. a3 {[%emt 0:01:55]} O-O {[%emt 0:02:41]} 9. h3 {[%emt 0:00:38]} Nd4 {[%emt 0:07:19]} 10. Nxd4 {[%emt 0:01:02]} exd4 {[%emt 0:00:05]} 11. Ne2 {[%emt 0:00:16]} c5 {[%emt 0:00:06]} 12. O-O {[%emt 0:04:43]} Bb7 {[%emt 0:01:24]} 13. Ng3 {[%emt 0:00:52]} Rc8 {[%emt 0:01:51]} 14. Re1 {[%emt 0:05:44]} Re8 {[%emt 0:01:16]} 15. Bg5 {[%emt 0:05:21]} h6 {[%emt 0:13:54]} 16. Bxf6 {[%emt 0:00:21]} Bxf6 {[%emt 0:00:08]} 17. Bd5 {[%emt 0:00:39]} Bxd5 18. exd5 {[%emt 0:00:04]} g6 {[%emt 0:07:33]} 19. Qd2 {[%emt 0:00:37]} Bg5 {[%emt 0:01:08]} 20. Rxe8+ Qxe8 {[%emt 0:00:07]} 21. Qa5 {[%emt 0:00:21]} Ra8 {[%emt 0:03:59]} 22. Qc7 {[%emt 0:04:18]} Qd8 {[%emt 0:14:00]} 23. Qc6 {[%emt 0:00:28]} Be7 {[%emt 0:02:41]} 24. a4 {[%emt 0:07:24]} b4 {[%emt 0:00:34]} 25. Re1 {[%emt 0:00:10]} Kf8 {[%emt 0:02:59]} 26. Qb7 {[%emt 0:02:15]} Rb8 {[%emt 0:23:06]} 27. Qxa6 {[%emt 0:01:06]} b3 28. cxb3 {[%emt 0:00:35]} Rxb3 {[%emt 0:00:14]} 29. Re2 {[%emt 0:08:43]} Qb8 {[%emt 0:00:24]} 30. Nf1 {[%emt 0:00:16]} Rxb2 {[%emt 0:01:17]} 31. Rxb2 {[%emt 0:00:26]} Qxb2 {[%emt 0:00:04]} 32. a5 {[%emt 0:00:44]} Qa1 {[%emt 0:02:11]} 33. Qc8+ {[%emt 0:00:46]} Kg7 {[%emt 0:00:07]} 34. a6 {[%emt 0:00:05]} Bg5 {[%emt 0:04:57]} 35. Qb7 {[%emt 0:00:34]} c4 {[%emt 0:00:20]} 36. a7 {[%emt 0:05:21]} c3 {[%emt 0:00:18]} 37. a8=Q {[%emt 0:00:23]} Qxa8 38. Qxa8 {[%emt 0:00:02]} c2 {[%emt 0:00:14]} 39. h4 {[%emt 0:11:54]} Bd2 40. Nxd2 {[%emt 0:00:00]} c1=Q+ {[%emt 0:00:00]} 41. Nf1 {[%emt 0:00:15]} Qf4 {[%emt 0:01:01]} 42. g3 {[%emt 0:00:27]} Qf5 {[%emt 0:00:05]} 43. Qc6 1-0

[Event "38th Barczay Memorial 2019"]
[Site "Zalakaros"]
[Date "2019.05.27"]
[Round "5.5"]
[White "Bagi, Mate"]
[Black "Tompa, Janos"]
[Result "1-0"]
[ECO "B81"]
[WhiteElo "2450"]
[BlackElo "2356"]
[Annotator "ChessBase"]
[PlyCount "51"]
[EventDate "2019.05.23"]
[EventType "swiss"]
[EventCountry "HUN"]
[SourceTitle "playchess.com"]
[Source "ChessBase"]
[SourceQuality "1"]
[TimeControl "40/5400+30:1800+30"]

1. e4 {[%emt 0:03:09]} c5 {[%emt 0:00:32]} 2. Nf3 {[%emt 0:00:07]} e6 {[%emt 0:00:14]} 3. d4 {[%emt 0:00:25]} cxd4 {[%emt 0:00:15]} 4. Nxd4 {[%emt 0:00:05]} Nf6 {[%emt 0:00:24]} 5. Nc3 {[%emt 0:00:18]} d6 {[%emt 0:00:07]} 6. g4 {[%emt 0:03:37]} h6 {[%emt 0:00:42]} 7. h4 {[%emt 0:01:14]} Nc6 {[%emt 0:00:34]} 8. Rg1 {[%emt 0:00:45]} d5 {[%emt 0:01:19]} 9. exd5 {[%emt 0:01:17]} Nxd5 {[%emt 0:00:13]} 10. Nxd5 {[%emt 0:01:24]} Qxd5 {[%emt 0:00:11]} 11. Bg2 {[%emt 0:02:53]} Qa5+ {[%emt 0:02:34]} 12. Bd2 {[%emt 0:09:40]} Qb6 {[%emt 0:13:45]} 13. Nxc6 {[%emt 0:01:42]} bxc6 {[%emt 0:00:07]} 14. Qf3 {[%emt 0:00:53]} Bd7 {[%emt 0:01:01]} 15. O-O-O {[%emt 0:09:43]} Bc5 {[%emt 0:01:53]} 16. Bc3 {[%emt 0:12:33]} Bxf2 {[%emt 0:04:07]} 17. Rxd7 {[%emt 0:00:44]} Qe3+ {[%emt 0:16:03]} 18. Rd2 {[%emt 0:00:29]} Qxf3 {[%emt 0:00:07]} 19. Bxf3 {[%emt 0:00:07]} Bxg1 {[%emt 0:00:19]} 20. Bxc6+ {[%emt 0:00:17]} Kf8 {[%emt 0:00:20]} 21. Bb4+ {[%emt 0:03:00]} Kg8 {[%emt 0:00:12]} 22. Bxa8 {[%emt 0:00:04]} Be3 {[%emt 0:00:09]} 23. Be4 {[%emt 0:01:08]} h5 {[%emt 0:01:29]} 24. g5 {[%emt 0:00:30]} f6 {[%emt 0:01:33]} 25. g6 {[%emt 0:02:43]} f5 {[%emt 0:03:21]} 26. Bc6 {[%emt 0:00:23]} 1-0

[Event "38th Barczay Memorial 2019"]
[Site "Zalakaros"]
[Date "2019.05.27"]
[Round "5.9"]
[White "Meszaros, Tamas"]
[Black "Suta, Andraz"]
[Result "0-1"]
[ECO "C50"]
[WhiteElo "2385"]
[BlackElo "2175"]
[Annotator "NA RC"]
[PlyCount "100"]
[EventDate "2019.05.23"]
[EventType "swiss"]
[EventCountry "HUN"]
[SourceTitle "playchess.com"]
[Source "ChessBase"]
[SourceQuality "1"]
[TimeControl "40/5400+30:1800+30"]

1. e4 {[%emt 0:00:15]} e5 {[%emt 0:00:07]} 2. Nf3 {[%emt 0:00:05]} Nc6 {[%emt 0:00:07]} 3. Bc4 {[%emt 0:00:25]} Bc5 {[%emt 0:00:09]} 4. O-O {[%emt 0:00:42]} Nf6 {[%emt 0:00:15]} 5. d3 {[%emt 0:00:08]} d6 {[%emt 0:00:20]} 6. a4 {[%emt 0:00:09]} a5 {[%emt 0:02:25]} 7. c3 {[%emt 0:00:26]} Ba7 {[%emt 0:01:42]} 8. Na3 {[%emt 0:11:54]} Ne7 {[%emt 0:06:36]} 9. Nc2 {[%emt 0:08:39]} O-O {[%emt 0:03:20]} 10. Ne3 {[%emt 0:05:50]} Ng6 {[%emt 0:08:40]} 11. Qc2 {[%emt 0:02:56]} c6 {[%emt 0:01:25]} 12. d4 {[%emt 0:03:02]} d5 {[%emt 0:11:57]} 13. dxe5 {[%emt 0:09:13]} dxc4 {[%emt 0:01:33]} 14. exf6 {[%emt 0:00:13]} Qxf6 {[%emt 0:00:12]} 15. Nxc4 {[%emt 0:01:05]} Bg4 {[%emt 0:00:35]} 16. Nd4 {[%emt 0:11:11]} b5 {[%emt 0:17:08]} 17. axb5 {[%emt 0:07:20]} cxb5 {[%emt 0:06:17]} 18. Ne3 {[%emt 0:06:39]} Bd7 {[%emt 0:03:21]} 19. Rxa5 {[%emt 0:02:41]} b4 {[%emt 0:01:30]} 20. Rd1 {[%emt 0:07:30]} Ne5 {[%emt 0:07:44]} 21. Nd5 {[%emt 0:03:53]} Qd8 {[%emt 0:04:16]} 22. cxb4 {[%emt 0:01:00]} Rc8 {[%emt 0:00:19]} 23. Qb1 {[%emt 0:05:23]} Bxd4 {[%emt 0:01:10]} 24. Rxd4 {[%emt 0:00:37]} Nc6 {[%emt 0:00:15]} 25. Rd1 {[%emt 0:01:41]} Nxa5 {[%emt 0:05:05]} 26. bxa5 {[%emt 0:00:04]} Ba4 {[%emt 0:00:57]} 27. b3 {[%emt 0:03:47]} Rb8 {[%emt 0:00:07]} 28. Bb2 {[%emt 0:06:27]} Rxb3 {[%emt 0:02:10]} 29. Qa1 {[%emt 0:00:31]} Rxb2 {[%emt 0:05:45]} 30. Qxa4 {[%emt 0:00:03]} Qb8 {[%emt 0:03:45]} 31. Nb6 {[%emt 0:01:10]} Rd8 {[%emt 0:02:11]} 32. Rf1 {[%emt 0:00:27]} Qa7 {[%emt 0:02:12]} 33. Nd5 {[%emt 0:00:19]} Rdb8 {[%emt 0:00:34]} 34. Qa1 {[%emt 0:00:43]} Re2 {[%emt 0:00:46]} 35. Qe5 {[%emt 0:00:27]} Rxf2 {[%emt 0:00:37]} 36. Qxb8+ {[%emt 0:00:29]} Qxb8 {[%emt 0:00:01]} 37. Kxf2 {[%emt 0:00:31]} Qa7+ {[%emt 0:00:18]} 38. Kg3 {[%emt 0:00:28]} Qxa5 {[%emt 0:00:13]} 39. Rf4 {[%emt 0:00:35]} Qe1+ {[%emt 0:02:21]} 40. Kh3 {[%emt 0:00:00]} g6 {[%emt 0:00:00]} 41. Nf6+ {[%emt 0:06:27]} Kg7 {[%emt 0:00:31]} 42. Ne8+ {[%emt 0:02:42]} Kf8 {[%emt 0:00:17]} 43. Nd6 {[%emt 0:04:46]} f6 {[%emt 0:04:50]} 44. Rxf6+ {[%emt 0:04:40]} Ke7 {[%emt 0:00:16]} 45. Rf7+ {[%emt 0:00:18]} Kxd6 {[%emt 0:00:06]} 46. Rxh7 {[%emt 0:00:02]} Qxe4 {[%emt 0:00:08]} 47. Rh4 {[%emt 0:01:14]} Qd3+ {[%emt 0:00:20]} 48. Kg4 {[%emt 0:02:10]} Ke5 {[%emt 0:02:27]} 49. Rh8 {[%emt 0:02:11]} Qf5+ {[%emt 0:01:52]} 50. Kg3 {[%emt 0:00:04]} g5 {[%emt 0:01:06]} 0-1

[Event "38th Barczay Memorial 2019"]
[Site "Zalakaros"]
[Date "2019.05.27"]
[Round "5.10"]
[White "Dobai, Szabolcs"]
[Black "Videki, Sandor"]
[Result "0-1"]
[ECO "A20"]
[WhiteElo "2192"]
[BlackElo "2383"]
[Annotator "NA RC"]
[PlyCount "66"]
[EventDate "2019.05.23"]
[EventType "swiss"]
[EventCountry "HUN"]
[SourceTitle "playchess.com"]
[Source "ChessBase"]
[SourceQuality "1"]
[TimeControl "40/5400+30:1800+30"]

1. c4 {[%emt 0:02:58]} e5 {[%emt 0:00:06]} 2. g3 {[%emt 0:00:05]} Nf6 {[%emt 0:00:09]} 3. Bg2 {[%emt 0:00:06]} c6 {[%emt 0:00:10]} 4. Nf3 {[%emt 0:00:20]} d6 {[%emt 0:06:17]} 5. Nc3 {[%emt 0:01:08]} Nbd7 {[%emt 0:00:24]} 6. O-O {[%emt 0:01:28]} Be7 {[%emt 0:12:06]} 7. d3 {[%emt 0:02:49]} O-O {[%emt 0:04:22]} 8. Rb1 {[%emt 0:02:43]} a5 {[%emt 0:02:41]} 9. a3 {[%emt 0:01:30]} d5 {[%emt 0:04:42]} 10. cxd5 {[%emt 0:10:12]} cxd5 {[%emt 0:01:05]} 11. d4 {[%emt 0:00:24]} e4 {[%emt 0:00:45]} 12. Nh4 {[%emt 0:04:31]} Nb6 {[%emt 0:02:20]} 13. f3 {[%emt 0:04:05]} exf3 {[%emt 0:01:53]} 14. Bxf3 {[%emt 0:04:33]} Bh3 {[%emt 0:06:18]} 15. Re1 {[%emt 0:09:56]} Rc8 {[%emt 0:11:08]} 16. Qd3 {[%emt 0:03:53]} Qd7 {[%emt 0:04:29]} 17. Bf4 {[%emt 0:19:37]} h6 {[%emt 0:06:43]} 18. Bg2 {[%emt 0:04:34]} g5 {[%emt 0:07:16]} 19. Bxh3 {[%emt 0:02:46]} Qxh3 {[%emt 0:00:23]} 20. Nf5 {[%emt 0:02:08]} Rfe8 {[%emt 0:00:23]} 21. Bd2 {[%emt 0:06:31]} Ng4 {[%emt 0:00:47]} 22. Qf3 {[%emt 0:00:33]} Qxh2+ {[%emt 0:06:43]} 23. Kf1 {[%emt 0:00:04]} Qh3+ {[%emt 0:03:48]} 24. Kg1 {[%emt 0:01:17]} Bf8 {[%emt 0:06:47]} 25. Qh1 {[%emt 0:05:55]} Qxh1+ {[%emt 0:00:50]} 26. Kxh1 {[%emt 0:00:04]} Nc4 {[%emt 0:01:48]} 27. Bc1 {[%emt 0:00:05]} Nxa3 {[%emt 0:00:56]} 28. bxa3 {[%emt 0:00:31]} Rxc3 {[%emt 0:00:07]} 29. Bd2 {[%emt 0:01:50]} Rxa3 {[%emt 0:02:41]} 30. Rxb7 {[%emt 0:00:06]} Ra2 {[%emt 0:00:24]} 31. Bc3 {[%emt 0:00:05]} Nf2+ {[%emt 0:01:54]} 32. Kg1 {[%emt 0:00:06]} Ne4 {[%emt 0:00:17]} 33. Rc7 {[%emt 0:02:17]} Nxc3 {[%emt 0:00:24]} 0-1

[Event "38th Barczay Memorial 2019"]
[Site "Zalakaros"]
[Date "2019.05.27"]
[Round "5.11"]
[White "Krstulovic, Alex"]
[Black "Geher, Koppany"]
[Result "1-0"]
[ECO "A88"]
[WhiteElo "2368"]
[BlackElo "2113"]
[Annotator "NA"]
[PlyCount "105"]
[EventDate "2019.05.23"]
[EventType "swiss"]
[EventCountry "HUN"]
[SourceTitle "playchess.com"]
[Source "ChessBase"]
[SourceQuality "1"]
[TimeControl "40/5400+30:1800+30"]

1. d4 {[%emt 0:02:54]} f5 {[%emt 0:00:05]} 2. g3 {[%emt 0:00:40]} Nf6 {[%emt 0:00:13]} 3. Bg2 {[%emt 0:00:23]} g6 {[%emt 0:00:08]} 4. Nf3 {[%emt 0:00:07]} Bg7 {[%emt 0:00:08]} 5. O-O {[%emt 0:00:07]} O-O {[%emt 0:00:09]} 6. c4 {[%emt 0:01:50]} d6 {[%emt 0:00:07]} 7. Nc3 {[%emt 0:00:06]} c6 {[%emt 0:00:12]} 8. d5 {[%emt 0:02:33]} e5 {[%emt 0:00:05]} 9. dxe6 {[%emt 0:00:19]} Bxe6 {[%emt 0:00:07]} 10. b3 {[%emt 0:01:25]} Na6 {[%emt 0:01:06]} 11. Nd4 {[%emt 0:06:53]} Bd7 {[%emt 0:08:41]} 12. Bb2 {[%emt 0:03:05]} Qe7 {[%emt 0:00:17]} 13. e3 {[%emt 0:06:58]} Rad8 {[%emt 0:00:50]} 14. Qe2 {[%emt 0:03:05]} Nc5 {[%emt 0:03:29]} 15. Rfd1 {[%emt 0:03:28]} Rfe8 {[%emt 0:03:18]} 16. Rac1 {[%emt 0:01:29]} h6 {[%emt 0:02:08]} 17. Qc2 {[%emt 0:14:19]} Nfe4 {[%emt 0:04:47]} 18. Re1 {[%emt 0:03:08]} Bc8 {[%emt 0:14:24]} 19. Rcd1 {[%emt 0:02:41]} Qf7 {[%emt 0:05:55]} 20. Bf1 {[%emt 0:06:42]} Rf8 {[%emt 0:09:23]} 21. Nce2 {[%emt 0:13:01]} Nd7 {[%emt 0:06:12]} 22. f3 {[%emt 0:08:18]} Nef6 {[%emt 0:02:04]} 23. Bg2 {[%emt 0:03:03]} Rfe8 {[%emt 0:02:56]} 24. Nc3 {[%emt 0:01:28]} Nc5 {[%emt 0:02:55]} 25. Ba3 {[%emt 0:03:09]} Kh7 {[%emt 0:06:07]} 26. Rd2 {[%emt 0:04:44]} Re7 {[%emt 0:01:34]} 27. Nxc6 {[%emt 0:01:34]} bxc6 {[%emt 0:01:02]} 28. Bxc5 {[%emt 0:00:02]} Qe8 {[%emt 0:03:58]} 29. Bd4 {[%emt 0:01:11]} Bb7 {[%emt 0:02:50]} 30. b4 {[%emt 0:02:33]} d5 {[%emt 0:05:06]} 31. Bc5 {[%emt 0:03:25]} Re6 {[%emt 0:01:00]} 32. cxd5 {[%emt 0:00:33]} Nxd5 {[%emt 0:00:01]} 33. Nxd5 {[%emt 0:00:18]} cxd5 {[%emt 0:00:08]} 34. Red1 {[%emt 0:00:46]} Rc8 {[%emt 0:01:55]} 35. Qb3 {[%emt 0:00:26]} Bf8 {[%emt 0:04:10]} 36. Bd4 {[%emt 0:00:42]} Rc4 {[%emt 0:00:47]} 37. a3 {[%emt 0:00:22]} Bc6 {[%emt 0:05:18]} 38. Qb2 {[%emt 0:00:29]} Ba4 {[%emt 0:02:31]} 39. Re1 {[%emt 0:00:11]} Rec6 {[%emt 0:02:16]} 40. Be5 {[%emt 0:00:00]} Rc2 {[%emt 0:00:00]} 41. Rxc2 {[%emt 0:01:33]} Rxc2 {[%emt 0:01:12]} 42. Qd4 {[%emt 0:00:16]} Qd7 {[%emt 0:01:06]} 43. f4 {[%emt 0:09:26]} Bc6 {[%emt 0:07:32]} 44. Rd1 {[%emt 0:05:05]} a5 {[%emt 0:00:46]} 45. Bxd5 {[%emt 0:01:49]} Bxd5 {[%emt 0:00:25]} 46. Qxd5 {[%emt 0:00:16]} Qxd5 {[%emt 0:00:06]} 47. Rxd5 {[%emt 0:00:04]} axb4 {[%emt 0:00:05]} 48. Rd8 {[%emt 0:08:36]} Kg8 {[%emt 0:07:21]} 49. Bd6 {[%emt 0:00:48]} Rc1+ {[%emt 0:00:09]} 50. Kg2 {[%emt 0:00:41]} Rc2+ {[%emt 0:01:57]} 51. Kf3 {[%emt 0:00:38]} bxa3 {[%emt 0:00:24]} 52. Rxf8+ {[%emt 0:00:20]} Kg7 {[%emt 0:00:05]} 53. Bxa3 {[%emt 0:00:26]} 1-0

[Event "38th Barczay Memorial 2019"]
[Site "Zalakaros"]
[Date "2019.05.28"]
[Round "6.1"]
[White "Bokros, Albert"]
[Black "Almasi, Istvan"]
[Result "1/2-1/2"]
[ECO "C07"]
[WhiteElo "2461"]
[BlackElo "2407"]
[Annotator "RC"]
[PlyCount "20"]
[EventDate "2019.05.23"]
[EventType "swiss"]
[EventCountry "HUN"]
[SourceTitle "playchess.com"]
[Source "ChessBase"]
[SourceQuality "1"]
[TimeControl "40/5400+30:1800+30"]

1. e4 e6 {[%emt 0:04:58]} 2. d4 {[%emt 0:00:19]} d5 {[%emt 0:00:39]} 3. Nd2 {[%emt 0:01:44]} c5 {[%emt 0:00:26]} 4. exd5 {[%emt 0:01:03]} Qxd5 {[%emt 0:03:18]} 5. Ngf3 {[%emt 0:01:47]} cxd4 {[%emt 0:00:06]} 6. Bc4 {[%emt 0:00:08]} Qd8 {[%emt 0:00:26]} 7. Nb3 {[%emt 0:00:28]} Nc6 {[%emt 0:00:34]} 8. Nbxd4 {[%emt 0:00:39]} Nxd4 {[%emt 0:00:18]} 9. Qxd4 {[%emt 0:00:23]} Qxd4 {[%emt 0:00:30]} 10. Nxd4 {[%emt 0:00:05]} Bd7 {[%emt 0:00:16]} 1/2-1/2